Cogmind - Beta 16.1 @@@ ROGUE MODE // 2026.04.26 @ 14:53:37 Player: Dobri Result: Self-destructed Performance ------------- Evolutions (3) 1500 Regions Visited (5) 1000 Robots Destroyed (72) 360 Value Destroyed (1692) 1692 Prototype IDs (2) 40 Alien Tech Used (0) 0 Bonus (0) 0 TOTAL SCORE: 4592 Bonus ------- None Cogmind --------- Core Integrity 655/700 Matter 8/300 Energy 100/100 System Corruption 0% Temperature Cool (0) Movement Core (100) Ox1 Location -7/Factory Parts ------- > --- POWER (2) -------- (None) > --- PROPULSION (4) --- (None) > --- UTILITY (4) ------ (None) > --- WEAPON (3) ------- Mini Assault Cannon > --- INVENTORY (5) ---- Machine Analyzer Weapon Cycler Improved Medium Armor Plating Heavy Rocket Launcher Mining Laser Peak State ------------ > --- POWER ------------ Micro Nuclear Core Micro Nuclear Core > --- PROPULSION ------- Light Treads Light Treads Armored Treads > --- UTILITY ---------- Improved Heat Sink Weapon Cycler Weapon Cycler Improved Medium Armor Plating > --- WEAPON ----------- Heavy Rocket Launcher Heavy Rocket Launcher Heavy Rocket Launcher > --- INVENTORY -------- Machine Analyzer Weapon Cycler Improved Medium Armor Plating Heavy Rocket Launcher Mining Laser [Rating: 41] Favorites ----------- Power Micro Nuclear Core Engine Ion Engine Power Core Micro Nuclear Core Propulsion Light Treads Treads Light Treads Leg Aluminum Leg Utility Weapon Cycler Device Weapon Cycler Storage Small Storage Unit Processor Terrain Scan Processor Hackware Hacking Suite Protection Improved Light Armor Plating Weapon High-powered Shotgun Energy Gun Small Laser Energy Cannon Light EM Pulse Cannon Ballistic Gun High-powered Shotgun Ballistic Cannon Mini Assault Cannon Launcher Heavy Rocket Launcher Slashing Weapon Mining Claw Build | -11 -10 -9 -9 -8 -7 ------- Run | Yrd Mat Mat Min Mat Fac Slots Evolved 6 | . . 2 . 2 2 Power 1 | . . 1 . . . Propulsion 2 | . . . . 1 1 Utility 2 | . . 1 . . 1 Weapon 1 | . . . . 1 . Parts Attached 61 | 8 9 19 1 21 3 Power 9 | 1 . 5 . 3 . Engine 7 | 1 . 5 . 1 . Core 2 | . . . . 2 . Reactor . | . . . . . . Propulsion 10 | 3 . 3 . 3 1 Treads 6 | 2 . . . 3 1 Leg 4 | 1 . 3 . . . Wheel . | . . . . . . Hover . | . . . . . . Flight . | . . . . . . Utility 22 | 2 4 7 1 7 1 Device 11 | 1 1 3 1 5 . Storage 1 | 1 . . . . . Processor 5 | . 2 2 . 1 . Hackware 1 | . 1 . . . . Protection 4 | . . 2 . 1 1 Artifact . | . . . . . . Weapon 20 | 2 5 4 . 8 1 Energy Gun 3 | 1 . 2 . . . Energy Cannon 1 | . . 1 . . . Ballistic Gun 9 | 1 3 . . 5 . Ballistic Cannon 1 | . . . . . 1 Launcher 5 | . 2 . . 3 . Special Weapon . | . . . . . . Impact Weapon . | . . . . . . Slashing Weapon 1 | . . 1 . . . Piercing Weapon . | . . . . . . Special Melee Weapon . | . . . . . . Unidentified Prototypes 2 | . . 1 . . 1 Parts Lost 11 | . 1 7 . 1 2 Power 4 | . . 4 . . . Propulsion 4 | . . 1 . 1 2 Utility 2 | . 1 1 . . . Weapon 1 | . . 1 . . . Highest Loss Streak 3 | . 1 3 . 1 2 To Critical Strikes . | . . . . . . Average Backups 4 | 5 6 3 4 4 4 Power . | . 1 . . . . Propulsion . | 3 2 . . . . Utility 2 | . . . 3 3 2 Weapon 1 | 1 2 1 1 1 2 Tool/Special . | . . . . . . Unused Backups 13 | . 7 . . 2 4 Power 1 | . 1 . . . . Propulsion 2 | . 2 . . . . Utility 7 | . 2 . . 2 3 Weapon 3 | . 2 . . . 1 Tool/Special . | . . . . . . Average Slot Usage (%) 74 | . 99 75 14 72 75 Engine 5 | . 14 14 . 1 . Core 4 | . . . . 2 13 Treads 15 | . 28 10 . 17 16 Leg 2 | . . 8 . . . Device 10 | . 4 5 2 10 19 Storage 1 | . 8 . . . . Processor 5 | . 2 8 11 8 . Hackware 4 | . 12 9 . . . Protection 3 | . . . . 7 6 Energy Gun 1 | . 5 3 . . . Ballistic Gun 9 | . 16 . . 24 . Launcher 9 | . 5 13 . . 19 Peak Build Rating 41 | 9 12 16 4 34 41 Average Rating 18 | 5 9 11 2 19 34 On Entrance 10 | . 9 12 5 4 34 Avg Prop Armor Cover (%) . | . . . . . . Naked Turns 59 | . . 22 . . 37 Heaviest Build 43 | 13 14 22 1 38 43 Greatest Support 60 | 40 40 40 3 60 60 Greatest Overweight (x) 3 | . . 1 . 3 1 Average Overweight (x) . | . . . . . . Largest Inventory Capacity 8 | 8 8 5 5 5 5 Average Capacity 5 | 7 6 5 5 5 5 Most Carried 8 | 7 8 5 4 5 5 Average Carried 4 | 5 6 3 4 4 4 Final Capacity 8 | 8 5 5 5 5 5 Final Carried 7 | 7 5 4 4 5 5 Class Distribution -------------------- 49% | Mutant 28% | Gunner 6% | Scavenger-Gunner 6% | Tank 5% | Scavenger-Tank 3% | Scavenger-Mutant Dominant Class ---------------- Mutant | -10/Materials Mutant | -9/Materials Mutant | -9/Mines Scavenger-Gunner | -8/Materials Gunner | -7/Factory Resources | -11 -10 -9 -9 -8 -7 ----------- Run | Yrd Mat Mat Min Mat Fac Matter Collected 1528 | 296 59 392 . 623 158 Remotely . | . . . . . . Salvage Created 2188 | 143 54 1133 . 629 229 Parts 143 | 5 7 83 . 31 17 Haulers Intercepted 2 | . . 2 . . . Recyclers Shooed 5 | . 1 4 . . . Parts Field Recycled . | . . . . . . Retrieved Matter . | . . . . . . Parts Self-Destructed . | . . . . . . Prevented . | . . . . . . Parts Restored . | . . . . . . Kills | -11 -10 -9 -9 -8 -7 ------- Run | Yrd Mat Mat Min Mat Fac Combat Hostiles Destroyed 46 | . 3 19 . 17 7 Melee 1 | . . 1 . . . Guns 23 | . 3 3 . 17 . AOE 22 | . . 15 . . 7 Classes Destroyed 11 | 2 1 5 . 1 2 Worker 2 | . . 1 . 1 . Builder 10 | . . 5 . . 5 Tunneler 5 | 2 . 1 . . 2 Hauler 2 | . . 2 . . . Recycler 7 | 1 . 4 . 1 1 Swarmer 16 | . 3 8 . 5 . Grunt 16 | . . 8 . 5 3 Brawler 1 | . . . . 1 . Duelist 1 | . . . . . 1 Sentry 10 | . . 3 . 6 1 Hunter 2 | . . . . . 2 Best Kill Streak 6 | 2 2 6 . 3 6 Combat Bots Only 5 | . 2 5 . 3 2 Max Kills in Single Turn 4 | 1 1 3 . 2 4 Gunslinging . | . . . . . . Exploded 3 | . . 3 . . 2 Melee 1 | . . 1 . . . Uniques/NPCs Destroyed . | . . . . . . Combat | -11 -10 -9 -9 -8 -7 -------- Run | Yrd Mat Mat Min Mat Fac Hostile Shots Fired 285 | . 33 96 3 100 53 Missed 89 | . 4 27 2 35 21 Hits 196 | . 29 69 1 65 32 Projectile 196 | . 29 69 1 65 32 AOE 1 | . . 1 . . . Critical Strikes 5 | . . 2 . 3 . Damage Taken 2645 | . 274 1068 9 785 509 Core 552 | . 64 262 9 172 45 Absorbed by Shields . | . . . . . . Core Remaining (%) 68 | 100 74 . 32 68 . Volleys Fired 151 | 16 24 62 . 40 9 Largest 3 | 2 2 2 . 3 3 Hottest 117 | 60 66 98 . 75 117 Shots Fired 300 | 32 48 80 . 114 26 Gun 238 | 32 46 46 . 114 . Cannon . | . . . . . . Launcher 62 | . 2 34 . . 26 Special . | . . . . . . Kinetic 153 | 16 23 . . 114 . Thermal 85 | 16 23 46 . . . Explosive 26 | . . . . . 26 Electromagnetic 36 | . 2 34 . . . Robot Hit Streak 9 | 6 4 8 . 9 8 Robot Miss Streak 20 | 2 2 4 . 20 2 Penetration Max . | . . . . . . Secondary Targets 3 | . . . . 3 . Max Gunslinging Chain 1 | . . . . 1 . Shots Hit Robots 164 | 21 8 50 . 72 13 Core Hits 114 | 6 4 45 . 33 26 Critical Kills . | . . . . . . Critical Parts Destroyed . | . . . . . . Critical Strikes 1 | . . 1 . . . Burn 1 | . . 1 . . . Melee Attacks 9 | . . 9 . . . Impact . | . . . . . . Slashing 9 | . . 9 . . . Piercing . | . . . . . . Sneak Attacks . | . . . . . . Combat Hostiles . | . . . . . . Follow-up Attacks . | . . . . . . Damage Inflicted 4850 | 206 127 1588 . 1336 1593 Guns 2016 | 206 77 397 . 1336 . Cannons . | . . . . . . Explosions 2721 | . 50 1082 . . 1589 Melee 72 | . . 72 . . . Ramming 41 | . . 37 . . 4 Kinetic 1441 | 76 29 . . 1336 . Thermal 676 | 130 48 498 . . . Explosive 1589 | . . . . . 1589 Electromagnetic 1031 | . 50 981 . . . Impact . | . . . . . . Slashing 72 | . . 72 . . . Piercing . | . . . . . . Highest Corruption . | . . . . . . Average Corruption . | . . . . . . Corruption Purged . | . . . . . . Corruption Blocked . | . . . . . . Overload Shots . | . . . . . . Overflow Damage 39 | . 1 9 . . 29 Projectiles . | . . . . . . Explosions 39 | . 1 9 . . 29 Melee . | . . . . . . Knockbacks . | . . . . . . Impact . | . . . . . . Kinetic . | . . . . . . Secondary . | . . . . . . Self-Inflicted Damage 342 | . 31 148 . . 163 Shots 17 | . 2 9 . . 6 Rammed 9 | . 1 7 . . 1 Targets Rammed 10 | . 1 8 . . 1 Kicked . | . . . . . . Crushed 1 | . . 1 . . . Highest Temperature 314 | 40 120 314 . 36 162 Average Temperature 56 | 18 56 73 . 17 50 Received Heat Transfer 759 | . . 342 . 297 120 Effects 3 | . . 3 . . . Interference 3 | . . 3 . . . Siege Activations . | . . . . . . Martial Activations . | . . . . . . Shielding Activations . | . . . . . . Robots Disrupted . | . . . . . . Combat Hostiles . | . . . . . . Robots Corrupted . | . . . . . . Combat Hostiles . | . . . . . . Parts Fried 3 | . . 3 . . . Impact Corruptions . | . . . . . . Robots Melted . | . . . . . . Combat Hostiles . | . . . . . . Parts Melted 3 | . . 3 . . . Heat Transferred 1592 | 300 100 1192 . . . Parts Sabotaged . | . . . . . . Parts Stolen . | . . . . . . Parts Stripped . | . . . . . . Power Chain Reactions 8 | . . 8 . . . Alert | -11 -10 -9 -9 -8 -7 ------- Run | Yrd Mat Mat Min Mat Fac Maximum Alert Level 1 | . . 1 . 1 1 Low Security (%) 82 | 100 100 58 100 92 78 Level 1 17 | . . 41 . 7 21 Level 2 . | . . . . . . Level 3 . | . . . . . . Level 4 . | . . . . . . Level 5 . | . . . . . . High Security . | . . . . . . Max Security . | . . . . . . Peak Influence 338 | 10 60 338 146 213 239 Initial 131 | . . . 131 40 85 Average 123 | . 11 173 120 142 143 Influence Increases 1956 | 15 70 745 45 597 484 Destroy 0b10 Robot/C 960 | . 60 380 . 380 140 Destroy 0b10 Robot/NC 130 | 15 . 65 . 10 40 Destroy Leader 244 | . 10 94 . 100 40 Successful Hack 8 | . . . . . 8 Disable Machine 105 | . . 45 . 30 30 Destroy Structure 194 | . . 26 . 2 166 Lose Combat Pursuer 315 | . . 135 45 75 60 Influence Decreases 1741 | 15 70 407 277 514 458 Entered New Map 377 | . . . 207 66 104 Time Decay 1224 | 15 70 337 70 398 334 Lost Part 100 | . . 70 . 10 20 Lost Ally 40 | . . . . 40 . Squads Dispatched 12 | . . 4 . 2 6 Investigation 4 | . . 1 . 1 2 Extermination 1 | . . . . . 1 Reinforcement 5 | . . 3 . . 2 Assault . | . . . . . . Garrison 2 | . . . . 1 1 Intercept . | . . . . . . Searches Triggered . | . . . . . . Construction Impeded 2 | . . . . . 2 Haulers Reinforced . | . . . . . . Active Scanning Responses . | . . . . . . Cargo Convoy Interrupts . | . . . . . . Stealth | -11 -10 -9 -9 -8 -7 --------- Run | Yrd Mat Mat Min Mat Fac Distress Signals . | . . . . . . Communications Jammed . | . . . . . . Distress Signals . | . . . . . . Times Spotted 78 | . 5 31 3 28 11 Peak Tracking Total 10 | . 3 5 3 10 4 Tactical Retreats 9 | . . 4 1 3 1 Traps | -11 -10 -9 -9 -8 -7 ------- Run | Yrd Mat Mat Min Mat Fac Traps Triggered 2 | . . . . 1 1 Indirectly . | . . . . . . Trap Hack Attempts . | . . . . . . Triggered . | . . . . . . Disarmed . | . . . . . . Reprogrammed . | . . . . . . Reused . | . . . . . . Traps Extracted . | . . . . . . Installed . | . . . . . . Triggered . | . . . . . . Machines | -11 -10 -9 -9 -8 -7 ---------- Run | Yrd Mat Mat Min Mat Fac Machines Disabled 7 | . . 3 . 2 2 Max in Single Turn 1 | . . 1 . 1 1 Machines Repaired . | . . . . . . Machines Dismantled . | . . . . . . Machines Sabotaged . | . . . . . . Overloaded Fab Kills . | . . . . . . Hacking | -11 -10 -9 -9 -8 -7 --------- Run | Yrd Mat Mat Min Mat Fac Machines Accessed 8 | . 4 2 . . 2 Terminals 5 | . 3 1 . . 1 Fabricators 1 | . . . . . 1 Repair Stations . | . . . . . . Recycling Units 1 | . 1 . . . . Scanalyzers 1 | . . 1 . . . Garrison Access . | . . . . . . Total Hacks 18 | . 8 6 . . 4 Successful 15 | . 6 6 . . 3 Failed 3 | . 2 . . . 1 Catastrophic . | . . . . . . Database Lockouts . | . . . . . . Manual . | . . . . . . Terminals 10 | . 6 3 . . 1 Fabricators 3 | . . . . . 3 Repair Stations . | . . . . . . Recycling Units 2 | . 2 . . . . Scanalyzers 3 | . . 3 . . . Garrison Access . | . . . . . . Terminal Hacks 8 | . 4 3 . . 1 Record 3 | . 1 2 . . . Open DSF 1 | . . . . . 1 Emergency Access Points 1 | . 1 . . . . Alert Level 1 | . . 1 . . . Maintenance Status 1 | . 1 . . . . Zone Layout 1 | . 1 . . . . Fabricator Hacks 2 | . . . . . 2 Load Schematic 1 | . . . . . 1 Build 1 | . . . . . 1 Repair Station Hacks . | . . . . . . Recycling Unit Hacks 2 | . 2 . . . . Report Inventory 1 | . 1 . . . . Retrieve Components 1 | . 1 . . . . Scanalyzer 3 | . . 3 . . . Insert Component 1 | . . 1 . . . Analyze 1 | . . 1 . . . Retrieve Study 1 | . . 1 . . . Garrison Access Hacks . | . . . . . . Unauthorized Hacks . | . . . . . . Terminals . | . . . . . . Fabricators . | . . . . . . Repair Stations . | . . . . . . Recycling Units . | . . . . . . Scanalyzers . | . . . . . . Garrison Access . | . . . . . . Data Cores Recovered 1 | . 1 . . . . Used . | . . . . . . Hacking Detections 2 | . 1 . . . 1 Full Trace Events 2 | . 1 . . . 1 Feedback Events . | . . . . . . Feedback Blocked . | . . . . . . Robot Schematics Acquired . | . . . . . . Robots Built . | . . . . . . Authchips . | . . . . . . Time . | . . . . . . Total Robot Build Rating . | . . . . . . Part Schematics Acquired 1 | . . 1 . . . Parts Built 2 | . . . . . 2 Authchips . | . . . . . . Time 51 | . . . . . 51 Total Part Build Rating 2 | . . . . . 2 Part Studies Acquired 1 | . . 1 . . . Parts Repaired . | . . . . . . Time . | . . . . . . Parts Recycled . | . . . . . . Recycled Matter . | . . . . . . Retrieved Matter . | . . . . . . Retrieved Components 10 | . 10 . . . . Parts Scanalyzed 1 | . . 1 . . . Part Schematics Acquired 1 | . . 1 . . . Parts Damaged . | . . . . . . Bothacking | -11 -10 -9 -9 -8 -7 ------------ Run | Yrd Mat Mat Min Mat Fac Used RIF Installer . | . . . . . . Robots Hacked . | . . . . . . Non-combat . | . . . . . . Combat . | . . . . . . Robot Hacks Applied . | . . . . . . Relay Couplers Released . | . . . . . . Fabnet Peak Effective % . | . . . . . . Robots Rewired . | . . . . . . Allies Hacked . | . . . . . . Hacks Repelled . | . . . . . . Allies | -11 -10 -9 -9 -8 -7 -------- Run | Yrd Mat Mat Min Mat Fac Total Allies 2 | . . . 2 . . Largest Group 2 | . . . 2 2 . Highest-Rated Group 41 | . . . 41 41 . Highest-Rated Ally 31 | . . . 31 31 . Total Orders . | . . . . . . Ally Attacks 10 | . . . . 10 . Total Damage 109 | . . . . 109 . Kills 2 | . . . . 2 . Allies Corrupted 1 | . . . . 1 . Allies Melted . | . . . . . . Intel | -11 -10 -9 -9 -8 -7 ------- Run | Yrd Mat Mat Min Mat Fac Active Infowar (turns) 283 | 36 114 133 . . . Terrain 129 | 36 27 66 . . . Seismic 154 | . 87 67 . . . Robot Analysis Total . | . . . . . . Derelict Logs Recovered 1 | . . . 1 . . Drone Launches . | . . . . . . Drone Recoveries . | . . . . . . Exploration | -11 -10 -9 -9 -8 -7 ------------- Run | Yrd Mat Mat Min Mat Fac Turns Passed 3229 | 223 390 779 152 940 745 Spaces Moved 1975 | 111 179 471 235 516 463 Core 653 | 18 . 177 235 93 130 Treads 1207 | 93 179 179 . 423 333 Legs 115 | . . 115 . . . Wheels . | . . . . . . Hover . | . . . . . . Flight . | . . . . . . Fastest Speed 50 | 50 160 50 50 50 50 Average Speed 129 | 142 160 113 50 143 153 Slowest Speed 240 | 160 160 175 50 200 240 Overloaded Moves . | . . . . . . Propulsion Burnouts . | . . . . . . Robots Hopped . | . . . . . . Potential Cave-ins . | . . . . . . Cave-ins Triggered . | . . . . . . Exploration Rate (%) 32 | 5 36 40 54 45 13 Regions Visited 5 Branch Regions 1 Pre-discovered Areas 1 | . . . 1 . . Known Exits Taken . | . . . . . . Unknown Exits Taken 5 | 1 1 1 1 1 . Scrap Searched . | . . . . . . Spaces Dug . | . . . . . . Terrain Destroyed 217 | . . 22 . . 195 Melee . | . . . . . . Projectile . | . . . . . . AOE 217 | . . 22 . . 195 Terrain Rammed . | . . . . . . Walls Destroyed . | . . . . . . Machines Disabled . | . . . . . . Actions | -11 -10 -9 -9 -8 -7 --------- Run | Yrd Mat Mat Min Mat Fac Total 2384 | 146 248 611 269 627 483 Wait 93 | 1 3 27 32 26 4 Move 1970 | 110 178 470 234 515 463 Hop . | . . . . . . Pick Up 29 | 10 11 1 . 6 1 Fast Attach 41 | 4 3 13 1 17 3 Attach 18 | 4 5 6 . 2 1 Detach 9 | 1 2 4 . 2 . Swap 9 | . 3 3 . 3 . Drop 45 | . 18 8 2 16 1 Fire 151 | 16 24 62 . 40 9 Melee 9 | . . 9 . . . Ram 3 | . . 3 . . . Kick . | . . . . . . Crush 7 | . 1 5 . . 1 Escape Stasis . | . . . . . . Rewire . | . . . . . . Trap . | . . . . . . Miscellaneous . | . . . . . . Route ------- -11/Scrapyard -10/Materials -9/Materials -9/Mines (discovered 2 exits: *Mat x2) -8/Materials -7/Factory (discovered 1 exit: [*Sto]) History --------- Turn | Location | Event 5 | -11/Scrapyard | Discovered new exit (range 14) 224 | -11/Scrapyard | Entered Materials 225 | -10/Materials | Met a group of wandering Federalists 314 | -10/Materials | Build established: Mutant 518 | -10/Materials | Discovered new exit (range 16) 614 | -10/Materials | Entered another Materials area 614 | -9/Materials | Evolved 2 slots: Power x1, Utility x1 1091 | -9/Materials | Lost 3 parts (2p1w) 1134 | -9/Materials | Core integrity fell below 50% 1260 | -9/Materials | Released all parts (7) 1386 | -9/Materials | Discovered new exit (range 7) 1393 | -9/Materials | Entered Mines 1397 | -9/Mines | Learned location of Storage (-7) 1419 | -9/Mines | Discovered new exit (range 5) 1490 | -9/Mines | Discovered new exit (range 16) 1545 | -9/Mines | Entered Materials 1545 | -8/Materials | Accompanied by 2 allies 1545 | -8/Materials | Evolved 2 slots: Propulsion x1, Weapon x1 1550 | -8/Materials | Led the pair of lost Derelicts to an unsafe place 1907 | -8/Materials | Garrison activated, responded to threat 2275 | -8/Materials | Discovered new exit (range 10) 2485 | -8/Materials | Entered Factory 2485 | -7/Factory | Evolved 2 slots: Propulsion x1, Utility x1 2599 | -7/Factory | Garrison activated, responded to threat 2723 | -7/Factory | Build established: Gunner 2955 | -7/Factory | Fabricated Aluminum Leg? 3136 | -7/Factory | Released all parts (10) 3170 | -7/Factory | Discovered new exit (range 3) 3230 | -7/Factory | Self-destructed Last Messages --------------- local area. 03111_ U-05 Engineer lays Concrete. 03119_ K-01 Serf cleans the Fabricator. 03133_ Arm. Treads destroyed. 03135_ Lgt. Treads destroyed. 03136_ Released Hvy. Rocket Launcher. 03136_ Released Weapon Cycler. 03136_ Released Mic. Nuclear Core. 03136_ Released Lgt. Treads. 03136_ Released Mic. Nuclear Core. 03136_ Released Hvy. Rocket Launcher. 03136_ Released Weapon Cycler. 03136_ Released Imp. Heat Sink. 03136_ Released Imp. Medium Armor Plating. 03170_ EXIT=FOUND 03173_ Acquired Prototype Ballistic Cannon. 03173_ Identified Mni. Assault Cannon. 03184_ Connecting with Terminal... 03218_ R-06 Scavenger inserts Hvy. Rocket Launcher into recycling unit. 03219_ Recycling unit begins recycling process. Map ----- +----------------------------------------------------+ | ?######## ##### ! # " " # | | # + + # " " # | | # """ # ##### # " " # | | # """"" # #???# ! # # | | # """"" # #???# # # | | # # #########+#####? # | | # """ # #???? # | | # """"" # #######/# | | # """"" # | | # + | | # """ # """ """ """ | | # """"" # """ """ """ | | # """"" ##### """ """ """ | | # #???# #### | | # """ #???# #??# """ """ """ | | # """"" #???# #??# """ """ """ | | # """"" #???# #??# """ """ """ | | ?? #???# #??# | | ??###########+#### """ """ """ | | ????# # """ """ """ | | ????# """""" + """ """ """ | | ????# """""" # | | ????# """""" # | | ????# """""" ## | | ????# ## | | ????# @ ## ############ | | ????# ! ##+############ | | ????# """r ! # | | ????# "Yr # """"""""" | | ????# """ *# ! | | ????# # """"""""" | | ????############## | | ?????????????????# """"""""" | | ?????????????????# | | ?????????????????############### | | ?????????????????????????####### | | ?????????????????????????# | | ?????????????????????????# | | ?????????????????????????# | | ?????????????????????????# | | ?????????????????????????# | | ?????????????????????????# | | ?????????????????????????# | | ?????????????????????????# | | ?????????????????????????####### | | | | | | | | | | | +----------------------------------------------------+ Best States ------------- Heat Dissipation 48 Coolant Potential 50 Energy Generation 25 Energy Capacity 415 Matter Stores 300 Matter Capacity 300 Sight Range 16 Terrain Scan Range 16 Terrain Scan Density 85 Additional Mass Support 9 Armor Coverage 225 Weapon Cycling 30 Evasion (%) 55 Targeting Accuracy 8 Recoil Reduction 3 Offensive Hacking 10 Trap Extractor Capacity 4 Item Schematics ----------------- Aluminum Leg | -9/Materials | Scanalyzed Robot Schematics ------------------ None Fabricated ------------ Aluminum Leg | x2 | -7/Factory Repaired ---------- Nothing Studied --------- Aluminum Leg | -9/Materials | Hacked Alien Tech Used ----------------- None Achievements -------------- Ghost 'Em Hey, That's Mine! Just What I Needed Loot Pinata Oops Challenges ------------ None Game ------ Seed ScrapoidReflectiveCharger Manual? 0 Play Time 00:55:25 Cumulative 6.9 hours Start 2026.04.23 @ 01:40:36 End 2026.04.26 @ 14:53:37 Sessions 4 Manual Loads 0 Difficulty Rogue Special Mode None Game No. 7 Rogue 7 Adventurer 0 Explorer 0 Win Type - Total 0 Types 0/0/0/0/0/0/0/0/0/0 Lore% 6 Gallery% 7 Achievement% 9 Wizard Run 0 Options --------- Layout 0 ASCII 0 Keyboard 1 Movement Numpad Keybinds 0 Fullscreen 1 Font 18/SmallcapsGlow Map View 76x50 Zoom Use 0% Tactical HUD 1 Map Filters NONE Filters NONE Steam 1 RUN: 027bc59b-0774-4f85-82b9-032862d85c7a